fUST/lending_fUST_20250106
["ID","MTS","AMOUNT","RATE_DAILY","PERIOD"]
[347853995,1736159451297,-500.0,0.00019726,3]
[347853996,1736159451307,-1714.61,0.00019726,3]
[347853997,1736159451317,-500.0,0.00019726,3]
[347853998,1736159451327,-1223.36,0.00019726,3]
[347853999,1736159451337,-500.0,0.00019726,2]
[347854000,1736159451346,-500.0,0.00019726,3]
[347854001,1736159451355,-500.0,0.00019726,3]
[347854002,1736159451365,-500.0,0.00019726,3]
[347854003,1736159451374,-500.0,0.00019726,3]
[347854004,1736159451384,-500.0,0.00019726,3]
[347854005,1736159451394,-496.7,0.00019726,3]
[347854006,1736159451404,-260.8,0.00019726,3]
[347854007,1736159451413,-500.0,0.00019726,3]
[347854008,1736159451423,-500.0,0.00019726,3]
[347854009,1736159451433,-772.86,0.00019726,3]
[347854010,1736159451443,-500.0,0.00019726,3]
[347854011,1736159451453,-500.0,0.00019726,3]
[347854012,1736159451463,-621.96,0.00019726,3]
[347854013,1736159451472,-485.5,0.00019726,3]
[347854014,1736159451482,-500.0,0.00019726,3]
[347854015,1736159451491,-500.0,0.00019726,3]
[347854016,1736159451500,-500.0,0.00019726,3]
[347854017,1736159451510,-3141.81,0.00019726,3]
[347854018,1736159451519,-11056.87,0.00019726,3]
[347854019,1736159451528,-514.77,0.00019726,3]
[347854020,1736159451537,-884.96,0.00019726,3]
[347854021,1736159451546,-711.21,0.00019726,3]
[347854022,1736159451556,-500.0,0.00019726,3]
[347854023,1736159451565,-500.0,0.00019726,3]
[347854024,1736159451574,-500.0,0.00019726,3]
[347854025,1736159451583,-500.0,0.00019726,3]
[347854026,1736159451592,-500.0,0.00019726,3]
[347854027,1736159451601,-500.0,0.00019726,3]
[347854028,1736159451611,-377.29,0.00019726,3]
[347854029,1736159451620,-500.0,0.00019726,3]
[347854030,1736159451629,-500.0,0.00019726,3]
[347854031,1736159451639,-500.0,0.00019726,3]
[347854032,1736159451649,-652.79,0.00019726,3]
[347854033,1736159451658,-500.0,0.00019726,3]
[347854034,1736159451667,-500.0,0.00019726,3]
[347854035,1736159451676,-500.0,0.00019726,3]
[347854036,1736159451686,-2841.67561864,0.00019762,2]
[347854037,1736159451695,-52421.5463395,0.00019762,2]
[347854038,1736159451705,-8519.83012174,0.00019762,2]
[347854039,1736159451714,-8498.21237318,0.000198,2]
[347854040,1736159451724,-6147.29,0.000198,2]
[347854041,1736159451733,-367.8007,0.000198,2]
[347854042,1736159451742,-367.8007,0.000198,2]
[347854043,1736159451752,-151.0,0.000198,2]
[347854044,1736159451761,-1403.168996,0.000198,2]
[347854045,1736159451770,-1403.168996,0.000198,2]
[347854046,1736159451780,-151.0,0.000198,2]
[347854047,1736159451789,-12010.49594203,0.00019805,2]
[347854048,1736159451798,-420.0,0.00019907,2]
[347854049,1736159451807,-500.0,0.00019911,3]
[347854050,1736159451817,-500.0,0.00019921,3]
[347854051,1736159451826,-4200.21,0.00019921,3]
[347854052,1736159451835,-677.61,0.00019921,3]
[347854053,1736159451844,-676.16,0.00019927,3]
[347854054,1736159451853,-8519.83012174,0.00019969,2]
[347854055,1736159451862,-500.0,0.00019973,2]
[347854056,1736159451871,-676.16,0.00019999,3]
[347854057,1736159451880,-676.16,0.00019999,3]
[347854058,1736159451890,-676.16,0.00019999,3]
[347854059,1736159451899,-676.16,0.00019999,3]
[347854060,1736159451908,-676.27752322,0.00019999,3]
[347854061,1736159451917,-500.0,0.00019999,3]
[347854062,1736159451926,-500.0,0.00019999,3]
[347854063,1736159451936,-4200.21,0.00019999,3]
[347854064,1736159451945,-677.61,0.00019999,3]
[347854065,1736159451954,-500.0,0.0002,3]
[347854066,1736159451964,-151.862226,0.0002,2]
[347854067,1736159451973,-344.050001,0.0002,2]
[347854068,1736159451982,-344.050001,0.0002,2]
[347854069,1736159451992,-11201.86,0.0002,2]
[347854070,1736159452001,-13509.43,0.0002,2]
[347854071,1736159452010,-3545.18,0.0002,3]
[347854072,1736159452019,-500.0,0.0002,3]
[347854073,1736159452029,-500.0,0.0002,3]
[347854074,1736159452039,-256.79,0.0002,3]
[347854075,1736159452048,-500.0,0.0002,3]
[347854076,1736159452057,-151.0,0.0002,2]
[347854077,1736159452066,-500.0,0.0002,3]
[347854078,1736159452075,-367.8007,0.0002,2]
[347854079,1736159452084,-367.8007,0.0002,2]
[347854080,1736159452093,-500.0,0.0002,3]
[347854081,1736159452102,-1057.02,0.0002,3]
[347854082,1736159452111,-151.0,0.0002,2]
[347854083,1736159452121,-476.32,0.0002,3]
[347854084,1736159452130,-1403.168996,0.0002,2]
[347854085,1736159452140,-1403.168996,0.0002,2]
[347854086,1736159452149,-1042.08,0.0002,3]
[347854087,1736159452158,-281.885982,0.0002,2]
[347854088,1736159452167,-500.0,0.0002,3]
[347854089,1736159452176,-1714.61,0.0002,3]
[347854090,1736159452186,-500.0,0.0002,3]
[347854091,1736159452195,-151.0,0.0002,2]
[347854092,1736159452204,-1223.36,0.0002,3]
[347854093,1736159452214,-500.0,0.0002,3]
[347854094,1736159452223,-500.0,0.0002,3]
[347854095,1736159452232,-500.0,0.0002,3]
[347854096,1736159452242,-535.28,0.0002,3]
[347854097,1736159452251,-500.0,0.0002,3]
[347854098,1736159452260,-500.0,0.0002,3]
[347854099,1736159452270,-277.71051484,0.0002,3]
[347854100,1736159452280,-772.86,0.0002,3]
[347854101,1736159452293,-411.82,0.0002,3]
[347854102,1736159452302,-500.0,0.0002,3]
[347854103,1736159452311,-500.0,0.0002,3]
[347854104,1736159452322,-626.87,0.0002,3]
[347854105,1736159452331,-639.82208195,0.0002,3]
[347854106,1736159452340,-3141.81,0.0002,3]
[347854107,1736159452350,-11056.87,0.0002,3]
[347854108,1736159452359,-884.96,0.0002,3]
[347854109,1736159452369,-711.21,0.0002,3]
[347854110,1736159452379,-500.0,0.0002,3]
[347854111,1736159452388,-500.0,0.0002,3]
[347854112,1736159452397,-590.84,0.0002,3]
[347854113,1736159452406,-500.0,0.0002,3]
[347854114,1736159452415,-500.0,0.0002,3]
[347854115,1736159452425,-500.0,0.0002,3]
[347854116,1736159452434,-500.0,0.0002,3]
[347854117,1736159452443,-500.0,0.0002,3]
[347854118,1736159452453,-500.0,0.0002,3]
[347854119,1736159452462,-652.79,0.0002,3]
[347854120,1736159452472,-500.0,0.0002,3]
[347854121,1736159452482,-500.0,0.0002,3]
[347854122,1736159452492,-500.0,0.0002,3]
[347854123,1736159452501,-2081.0,0.00020004,2]
[347854124,1736159452510,-535.0,0.00020004,2]
[347854125,1736159452520,-2318.0,0.00020004,2]
[347854126,1736159452529,-394.0,0.00020004,2]
[347854127,1736159452539,-264.7411122,0.00020007,2]
[347854128,1736159452548,-2481.84601181,0.00020114,2]
[347854129,1736159452557,-8519.83012174,0.00020176,2]
[347854130,1736159452567,-151.0,0.000202,4]
[347854131,1736159452576,-620.0,0.000202,2]
[347854132,1736159452585,-638.492047,0.000202,2]
[347854133,1736159452595,-500.0,0.00020208,3]
[347854134,1736159452604,-151.0,0.00020209,2]
[347854135,1736159452613,-367.8007,0.00020209,2]
[347854136,1736159452623,-367.8007,0.00020209,2]
[347854137,1736159452633,-507.24333382,0.00020209,3]
[347854138,1736159452642,-500.0,0.00020209,3]
[347854139,1736159452651,-220.6056655,0.00020209,3]
[347854140,1736159452660,-151.0,0.00020209,2]
[347854141,1736159452670,-1403.168996,0.00020209,2]
[347854142,1736159452679,-1403.168996,0.00020209,2]
[347854143,1736159452688,-4200.21,0.00020209,3]
[347854144,1736159452698,-4200.21,0.00020209,3]
[347854145,1736159452707,-4200.21,0.00020209,3]
[347854146,1736159452716,-4200.21,0.00020209,3]
[347854147,1736159452726,-4200.21,0.00020209,3]
[347854148,1736159452735,-4200.21,0.00020209,3]
[347854149,1736159452744,-4200.21,0.00020209,3]
[347854150,1736159452754,-4200.21,0.00020209,3]
[347854151,1736159452763,-4200.21,0.00020209,3]
[347854152,1736159452772,-4200.21,0.00020209,3]
[347854153,1736159452781,-4200.21,0.00020209,3]
[347854154,1736159452790,-281.892938,0.00020209,2]
[347854155,1736159452799,-677.61,0.00020209,3]
[347854156,1736159452809,-677.61,0.00020209,3]
[347854157,1736159452818,-677.61,0.00020209,3]
[347854158,1736159452827,-677.61,0.00020209,3]
[347854159,1736159452836,-677.61,0.00020209,3]
[347854160,1736159452846,-677.61,0.00020209,3]
[347854161,1736159452855,-677.61,0.00020209,3]
[347854162,1736159452864,-677.61,0.00020209,3]
[347854163,1736159452874,-677.61,0.00020209,3]
[347854164,1736159452883,-677.61,0.00020209,3]
[347854165,1736159452893,-677.61,0.00020209,3]
[347854166,1736159452903,-221412.11366303,0.0002021,4]
[347854167,1736159452912,-414.42550859,0.0002021,4]
[347854168,1736159452922,-500.0,0.0002021,4]
[347854169,1736159452931,-404.31390698,0.0002021,4]
[347854170,1736159452940,-151.0,0.0002021,2]
[347854171,1736159452950,-151.0,0.0002021,2]
[347854172,1736159452959,-513.03397466,0.0002021,2]
[347854173,1736159452968,-344.050001,0.0002021,2]
[347854174,1736159452977,-344.050001,0.0002021,2]
[347854175,1736159452987,-151.0,0.0002021,2]
[347854176,1736159452996,-151.0,0.0002021,2]
[347854177,1736159453005,-151.0,0.0002021,2]
[347854178,1736159453015,-151.0,0.0002021,2]
[347854179,1736159453024,-151.0,0.0002021,2]
[347854180,1736159453034,-166.84397,0.0002021,2]
[347854181,1736159453043,-166.84397,0.0002021,2]
[347854182,1736159453052,-260.450956,0.0002021,2]
[347854183,1736159453062,-152.899769,0.0002021,2]
[347854184,1736159453071,-152.899769,0.0002021,2]
[347854185,1736159453080,-367.8007,0.0002021,2]
[347854186,1736159453089,-367.8007,0.0002021,2]
[347854187,1736159453098,-151.0,0.0002021,2]
[347854188,1736159453242,-1403.168996,0.0002021,2]
[347854189,1736159453252,-1403.169006,0.0002021,2]
[347854190,1736159453261,-4200.21,0.00020213,3]
[347854191,1736159453270,-4200.21,0.00020213,3]
[347854192,1736159453280,-4200.21,0.00020213,3]
[347854193,1736159453293,-4200.21,0.00020213,3]
[347854194,1736159453303,-4200.21,0.00020213,3]
[347854195,1736159453313,-4200.26061805,0.00020213,3]
[347854196,1736159453323,-677.61,0.00020213,3]
[347854197,1736159453333,-677.61,0.00020213,3]
[347854198,1736159453343,-677.61,0.00020213,3]
[347854199,1736159453353,-677.61,0.00020213,3]
[347854200,1736159453364,-677.61,0.00020213,3]
[347854201,1736159453374,-677.74585618,0.00020213,3]
[347854202,1736159453384,-367.8007,0.00020214,2]
[347854203,1736159453394,-367.8007,0.00020214,2]
[347854204,1736159453404,-500.0,0.00020273,2]
[347854205,1736159453414,-500.0,0.00020273,2]
[347854206,1736159453424,-500.0,0.00020273,2]
[347854207,1736159453433,-1465.22,0.00020273,3]
[347854208,1736159453443,-3545.18,0.00020273,3]
[347854209,1736159453453,-500.0,0.00020273,3]
[347854210,1736159453463,-500.0,0.00020273,3]
[347854211,1736159453473,-500.0,0.00020273,3]
[347854212,1736159453483,-500.0,0.00020273,3]
[347854213,1736159453492,-500.0,0.00020273,3]
[347854214,1736159453502,-1057.02,0.00020273,3]
[347854215,1736159453511,-1042.08,0.00020273,3]
[347854216,1736159453521,-500.0,0.00020273,3]
[347854217,1736159453530,-1714.61,0.00020273,3]
[347854218,1736159453540,-1223.36,0.00020273,3]
[347854219,1736159453550,-275.37,0.00020273,3]
[347854220,1736159453559,-500.0,0.00020273,3]
[347854221,1736159453568,-500.0,0.00020273,3]
[347854222,1736159453578,-243.74,0.00020273,3]
[347854223,1736159453587,-500.0,0.00020273,3]
[347854224,1736159453597,-772.86,0.00020273,3]
[347854225,1736159453607,-500.0,0.00020273,3]
[347854226,1736159453617,-434.55,0.00020273,3]
[347854227,1736159453626,-3141.81,0.00020273,3]
[347854228,1736159453636,-11056.87,0.00020273,3]
[347854229,1736159453645,-884.96,0.00020273,3]
[347854230,1736159453654,-711.21,0.00020273,3]
[347854231,1736159453664,-500.0,0.00020273,3]
[347854232,1736159453674,-500.0,0.00020273,3]
[347854233,1736159453684,-500.0,0.00020273,3]
[347854234,1736159453693,-500.0,0.00020273,3]
[347854235,1736159453703,-500.0,0.00020273,3]
[347854236,1736159453712,-500.0,0.00020273,3]
[347854237,1736159453721,-500.0,0.00020273,3]
[347854238,1736159453731,-500.0,0.00020273,3]
[347854239,1736159453741,-652.79,0.00020273,3]
[347854240,1736159453750,-500.0,0.00020273,3]
[347854241,1736159453759,-500.0,0.00020273,3]
[347854242,1736159453768,-500.0,0.00020273,3]
[347854243,1736159453778,-151.0,0.00020275,2]
[347854244,1736159453788,-151.0,0.00020275,2]
[347854245,1736159453796,-166.84397,0.00020275,2]
[347854246,1736159453805,-166.84397,0.00020275,2]
[347854247,1736159453814,-152.899769,0.00020275,2]
[347854248,1736159453824,-152.899769,0.00020275,2]
[347854249,1736159453833,-150.0,0.000203,2]
[347854250,1736159453842,-191955.48704916,0.00020314,5]
[347854251,1736159453866,-8129.64,0.00020314,5]
[347854252,1736159453877,-2774.319744,0.00020314,5]
[347854253,1736159453889,-14082.65297666,0.00020314,5]
[347854254,1736159453901,-8812.1261202,0.00020314,5]
[347854255,1736159453912,-1031.44018912,0.00020314,5]
[347854256,1736159813957,182.157568,0.00013973,2]
[347854261,1736160392129,-210.9672869,0.00018634,2]
[347854262,1736160392152,-98.94189613,0.00018822,2]
[347854275,1736160632847,-384.67002,0.00018,30]
[347854276,1736160632859,-730.2584702,0.00018,30]
[347854277,1736160632868,-465.45334445,0.00018711,2]
[347854278,1736160632877,-1437.57645187,0.000189,2]
[347854279,1736160632886,-1486.62535841,0.00019078,2]
[347854280,1736160632895,-243.5595915,0.00019173,2]
[347854281,1736160632904,-160.04118281,0.00019173,2]
[347854282,1736160632913,-151.03938322,0.00019173,2]
[347854283,1736160632922,-500.0,0.00019173,2]
[347854284,1736160632931,-160.04124528,0.00019173,2]
[347854285,1736160632940,-229.74593307,0.00019173,2]
[347854286,1736160632949,-300.0,0.00019176,2]
[347854287,1736160632958,-154.62,0.00019177,2]
[347854288,1736160632967,-189.132,0.00019177,2]
[347854289,1736160632977,-487.648647,0.00019177,2]
[347854290,1736160632986,-567.96430148,0.00019177,2]
[347854291,1736160632995,-465.91542544,0.00019177,2]
[347854292,1736160633004,-500.0,0.00019177,2]
[347854293,1736160633013,-500.0,0.00019177,2]
[347854294,1736160633023,-500.0,0.00019177,2]
[347854295,1736160633032,-500.0,0.00019177,2]
[347854296,1736160633042,-502.22282796,0.00019177,2]
[347854297,1736160633051,-185.25364457,0.00019177,2]
[347854298,1736160633061,-286.83374625,0.00019177,2]
[347854299,1736160633070,-500.0,0.00019178,2]
[347854300,1736160633079,-226.49474664,0.00019178,2]
[347854301,1736160633089,-500.0,0.00019178,2]
[347854302,1736160633098,-500.0,0.00019178,2]
[347854303,1736160633108,-500.0,0.00019178,2]
[347854304,1736160633119,-507.44094769,0.00019178,2]
[347854305,1736160633133,-500.0,0.00019178,2]
[347854306,1736160633143,-500.0,0.00019178,2]
[347854307,1736160633152,-500.0,0.00019178,2]
[347854308,1736160633162,-500.0,0.00019178,2]
[347854309,1736160633172,-500.0,0.00019178,2]
[347854310,1736160633182,-504.84375178,0.00019178,2]
[347854311,1736160633191,-505.18765916,0.00019178,2]
[347854312,1736160633201,-500.0,0.00019178,2]
[347854313,1736160633211,-500.0,0.00019178,2]
[347854314,1736160633220,-266.78905477,0.00019178,2]
[347854315,1736160633230,-500.0,0.00019178,2]
[347854316,1736160633239,-613.21962008,0.00019178,2]
[347854317,1736160633248,-151.0,0.00019178,2]
[347854318,1736160633259,-151.0,0.00019178,2]
[347854319,1736160633269,-151.0,0.00019178,2]
[347854320,1736160633279,-151.0,0.00019178,2]
[347854321,1736160633288,-500.0,0.00019178,2]
[347854322,1736160633298,-500.0,0.00019178,2]
[347854323,1736160633308,-151.0,0.00019178,2]
[347854324,1736160633317,-151.0,0.00019178,2]
[347854325,1736160633327,-151.0,0.00019178,2]
[347854326,1736160633336,-151.0,0.00019178,2]
[347854327,1736160633346,-151.0,0.00019178,2]
[347854328,1736160633359,-151.0,0.00019178,2]
[347854329,1736160633369,-151.0,0.00019178,2]
[347854330,1736160633378,-151.0,0.00019178,2]
[347854331,1736160633388,-151.0,0.00019178,2]
[347854332,1736160633398,-151.0,0.00019178,2]
[347854333,1736160633408,-500.0,0.00019178,2]
[347854334,1736160633417,-284.71,0.00019178,2]
[347854335,1736160633427,-433.38383566,0.00019178,5]
[347854336,1736160633436,-542.57,0.00019178,2]
[347854337,1736160633446,-500.0,0.00019178,2]
[347854338,1736160633455,-500.0,0.00019178,2]
[347854339,1736160633465,-500.0,0.00019178,2]
[347854340,1736160633475,-552.54,0.00019178,2]
[347854341,1736160633484,-434.41819821,0.00019178,2]
[347854369,1736160638806,-65.58180179,0.00019178,2]
[347854371,1736160638816,-316.64276362,0.00019178,2]
[347854924,1736160643832,-34.43435367,0.00019178,2]
[347855754,1736160787553,181.241799,0.00013973,2]
[347855762,1736161767153,-300.0,0.00016728,2]
[347855763,1736161767175,-300.0,0.00016897,2]
[347856046,1736161838171,-150.0,0.00017769,2]
[347856048,1736161838181,-150.0,0.00017948,2]
[347856050,1736161838190,-128.08,0.00018128,2]
[347856262,1736161840076,-171.92,0.00018128,2]
[347856264,1736161840086,-24639.4304328,0.00018129,2]
[347856266,1736161840099,-1356.56300448,0.000189,2]
[347856268,1736161840109,-958.38430124,0.000189,2]
[347856270,1736161840117,-1420.83780932,0.00018934,2]
[347856272,1736161840127,-151.305,0.00018934,2]
[347856274,1736161840137,-26210.77316975,0.00019,2]
[347856276,1736161840146,-10036.34641485,0.00019,2]
[347856278,1736161840156,-202.07008274,0.00019166,2]
[347856280,1736161840166,-500.0,0.00019173,2]
[347856282,1736161840176,-501.29432866,0.00019178,2]
[347856284,1736161840185,-613.95973707,0.00019178,2]
[347856286,1736161840194,-203.10580101,0.00019178,2]
[347856288,1736161840204,-520.02994434,0.00019178,2]
[347856290,1736161840213,-500.0,0.00019178,2]
[347856293,1736161840222,-500.0,0.00019178,2]
[347856295,1736161840232,-500.0,0.00019178,2]
[347856297,1736161840242,-500.0,0.00019178,2]
[347856299,1736161840252,-500.0,0.00019178,2]
[347856301,1736161840261,-500.0,0.00019178,2]
[347856304,1736161840270,-500.0,0.00019178,2]
[347856305,1736161840279,-500.0,0.00019178,2]
[347856308,1736161840289,-500.0,0.00019178,2]
[347856309,1736161840299,-500.0,0.00019178,2]
[347856312,1736161840311,-500.0,0.00019178,2]
[347856314,1736161840324,-500.0,0.00019178,2]
[347856316,1736161840333,-500.0,0.00019178,2]
[347856318,1736161840343,-500.0,0.00019178,2]
[347856320,1736161840352,-500.0,0.00019178,2]
[347856322,1736161840362,-1087.9,0.00019178,2]
[347856324,1736161840371,-500.0,0.00019178,2]
[347856326,1736161840381,-500.0,0.00019178,2]
[347856327,1736161840390,-2684.52,0.00019178,2]
[347856329,1736161840399,-500.0,0.00019178,2]
[347856331,1736161840410,-500.0,0.00019178,2]
[347856333,1736161840419,-500.0,0.00019178,2]
[347856336,1736161840429,-500.0,0.00019178,2]
[347856338,1736161840438,-500.0,0.00019178,2]
[347856340,1736161840447,-500.0,0.00019178,2]
[347856342,1736161840457,-500.0,0.00019178,2]
[347856344,1736161840467,-500.0,0.00019178,2]
[347856346,1736161840476,-500.0,0.00019178,2]
[347856348,1736161840485,-554.74,0.00019178,2]
[347856350,1736161840494,-500.0,0.00019178,2]
[347856352,1736161840503,-500.0,0.00019178,2]
[347856353,1736161840513,-500.0,0.00019178,2]
[347856355,1736161840522,-1017.54,0.00019178,2]
[347856357,1736161840531,-188.26117312,0.00019178,2]
[347856359,1736161840541,-500.0,0.00019178,2]
[347856361,1736161840550,-285.19444837,0.00019178,2]
[347856362,1736161840559,-500.0,0.00019178,2]
[347856364,1736161840568,-500.0,0.00019178,2]
[347856366,1736161840579,-500.0,0.00019178,2]
[347856367,1736161840589,-500.0,0.00019178,2]
[347856369,1736161840599,-500.0,0.00019178,2]
[347856371,1736161840609,-500.0,0.00019178,2]
[347856373,1736161840618,-230.78,0.00019178,2]
[347856375,1736161840627,-500.0,0.00019178,2]
[347856377,1736161840636,-500.0,0.00019178,2]
[347856379,1736161840646,-500.0,0.00019178,2]
[347856381,1736161840656,-500.0,0.00019178,2]
[347856383,1736161840665,-552.54,0.00019178,2]
[347856384,1736161840674,-1655.26,0.00019178,2]
[347856385,1736161840684,-1201.99,0.00019178,2]
[347856386,1736161840695,-500.0,0.00019178,2]
[347856387,1736161840704,-500.0,0.00019178,2]
[347856388,1736161840713,-500.0,0.00019178,2]
[347856389,1736161840722,-500.0,0.00019178,2]
[347856390,1736161840731,-500.0,0.00019178,2]
[347856391,1736161840740,-500.0,0.00019178,2]
[347856392,1736161840749,-500.0,0.00019178,2]
[347856393,1736161840758,-500.0,0.00019178,2]
[347856394,1736161840767,-500.0,0.00019178,2]
[347856395,1736161840777,-500.0,0.00019178,2]
[347856396,1736161840786,-3421.0,0.00019178,2]
[347856397,1736161840795,-633.06172058,0.00019178,2]
[347856398,1736161840807,-175.04827942,0.00019178,2]
[347856399,1736161840817,-191.01877488,0.00019178,2]
[347856400,1736161840828,-308.98122512,0.00019178,2]
[347856401,1736161840837,-500.0,0.00019178,2]
[347856402,1736161840847,-500.0,0.00019178,2]
[347856404,1736161840856,-237.80477542,0.00019178,2]
[347856406,1736161840868,-262.19522458,0.00019178,2]
[347856407,1736161840878,-500.0,0.00019178,2]
[347856409,1736161840887,-500.0,0.00019178,2]
[347856411,1736161840896,-500.0,0.00019178,2]
[347856412,1736161840906,-500.0,0.00019178,2]
[347856414,1736161840915,-500.0,0.00019178,2]
[347856416,1736161840925,-500.0,0.00019178,2]
[347856418,1736161840934,-6357.70805727,0.00019178,2]
[347856421,1736161840946,-711.28081311,0.00019178,2]
[347856423,1736161840957,-2006.83990656,0.00019178,2]
[347856632,1736161842862,-2308.14122306,0.00019178,2]
[347856635,1736161842871,-500.0,0.00019178,2]
[347856637,1736161842881,-787.11,0.00019178,2]
[347856638,1736161842890,-111.01202291,0.00019178,2]
[347856641,1736161842907,-388.98797709,0.00019178,2]
[347856643,1736161842917,-500.0,0.00019178,2]
[347856645,1736161842929,-40.90597669,0.00019178,2]
[347856648,1736161842951,-459.09402331,0.00019178,2]
[347856650,1736161842961,-297.12,0.00019178,2]
[347856652,1736161842970,-885.11,0.00019178,2]
[347856654,1736161842979,-500.0,0.00019178,2]
[347856656,1736161842988,-500.0,0.00019178,2]
[347856658,1736161842997,-500.0,0.00019178,2]
[347856660,1736161843006,-360.91683249,0.00019178,2]
[347856876,1736161845845,-500.0,0.00019177,2]
[347856877,1736161845854,-500.0,0.00019177,2]
[347856879,1736161845864,-102.47047142,0.00019177,2]
[347856882,1736161845896,-183.3710711,0.00019177,2]
[347856883,1736161845906,-441.4115904,0.00019177,2]
[347856928,1736161884697,176.5771293,0.00013973,2]
[347856929,1736161884723,3.7946887,0.00013973,2]
[347856932,1736162498329,1000.0,0.00025,120]
[347856933,1736162503825,150.0,0.00013,10]
[347856958,1736162944054,179.545336,0.00013973,2]
[347856959,1736162958990,506.803863,0.00014296,2]
[347856960,1736162964212,4932.4571466,0.0001441,2]
[347856964,1736162973456,1094.83636977,0.00014925,2]
[347856965,1736162989711,1094.83636977,0.00014925,2]
[347856969,1736163004037,1419.8419393,0.00014375,2]
[347856970,1736163005036,1094.83636977,0.00014925,2]
[347856971,1736163020621,1094.83636977,0.00014925,2]
[347857019,1736163032364,-159.89239171,0.00015047,2]
[347857020,1736163032374,-7447.18769903,0.00015047,2]
[347857021,1736163032384,-1094.83636977,0.00015076,2]
[347857022,1736163032394,-155.55659496,0.00015147,2]
[347857023,1736163032404,-300.0,0.00015352,2]
[347857024,1736163032413,-8130.0,0.00015352,2]
[347857025,1736163032423,-24900.0,0.00015353,2]
[347857026,1736163032433,-1397.79631013,0.00015383,2]
[347857027,1736163032442,-754.71486678,0.00015639,2]
[347857028,1736163032452,-7654.34260012,0.00016,2]
[347857029,1736163032461,-152.0,0.0001626,2]
[347857030,1736163032471,-1397.79631012,0.00016473,2]
[347857031,1736163032481,-500.0,0.00016538,2]
[347857032,1736163032490,-20084.999476,0.00016539,2]
[347857033,1736163032499,-250.0,0.00016717,2]
[347857034,1736163032509,-420.0,0.00016796,2]
[347857035,1736163032519,-2333.4146042,0.00017005,2]
[347857036,1736163032528,-1145.96502575,0.00017528,2]
[347857037,1736163032538,-1397.79631012,0.00017562,2]
[347857038,1736163032547,-4628.74285262,0.00017669,2]
[347857039,1736163032556,-151.0,0.00017955,2]
[347857040,1736163032566,-307.85536857,0.00017966,2]
[347857041,1736163032575,-306.37333254,0.00017968,2]
[347857042,1736163032584,-587.0,0.00018376,2]
[347857043,1736163032593,-306.3733325,0.00018383,2]
[347857044,1736163032602,-766.3732441,0.00018419,2]
[347857045,1736163032612,-352.9020598,0.00018541,2]
[347857046,1736163032621,-154.02,0.000186,2]
[347857047,1736163032635,-1397.79631012,0.00018652,2]
[347857048,1736163032644,-306.3733325,0.00018797,2]
[347857049,1736163032654,-3334.17046554,0.000189,2]
[347857050,1736163032664,-243.807,0.00018943,2]
[347857051,1736163032675,-228.20931706,0.00018943,2]
[347857052,1736163032684,-446.3087922,0.00018986,2]
[347857053,1736163032693,-428.9556674,0.00018986,2]
[347857054,1736163032703,-271.6238012,0.00018986,2]
[347857055,1736163032712,-309.6394073,0.00018986,2]